fUST/lending_fUST_20241229
["ID","MTS","AMOUNT","RATE_DAILY","PERIOD"]
[346981435,1735447843376,-500.0,9.578e-05,2]
[346981437,1735447843386,-500.0,9.578e-05,2]
[346981439,1735447843396,-500.0,9.578e-05,2]
[346981441,1735447843406,-500.0,9.578e-05,2]
[346981443,1735447843415,-500.0,9.578e-05,2]
[346981445,1735447843425,-500.0,9.578e-05,2]
[346981447,1735447843434,-500.0,9.578e-05,2]
[346981449,1735447843444,-504.95,9.578e-05,2]
[346981451,1735447843454,-500.0,9.578e-05,2]
[346981453,1735447843464,-500.0,9.578e-05,2]
[346981455,1735447843473,-807.39,9.578e-05,2]
[346981456,1735447843483,-500.0,9.578e-05,2]
[346981457,1735447843493,-500.0,9.578e-05,2]
[346981458,1735447843503,-9735.03,9.578e-05,2]
[346981459,1735447843512,-229.92639621,9.578e-05,2]
[346981460,1735447843522,-529.71,9.578e-05,2]
[346981461,1735447843531,-500.0,9.578e-05,2]
[346981462,1735447843540,-500.0,9.578e-05,2]
[346981463,1735447843550,-500.0,9.578e-05,2]
[346981464,1735447843559,-500.0,9.578e-05,2]
[346981465,1735447843569,-558.38,9.578e-05,2]
[346981466,1735447843579,-500.0,9.578e-05,2]
[346981467,1735447843590,-500.0,9.578e-05,2]
[346981468,1735447843599,-500.0,9.579e-05,2]
[346981469,1735447843609,-500.0,9.579e-05,2]
[346981470,1735447843619,-308.77437034,9.579e-05,2]
[346981471,1735447843628,-500.0,9.579e-05,2]
[346981472,1735447843638,-500.0,9.579e-05,2]
[346981473,1735447843647,-500.0,9.579e-05,2]
[346981474,1735447843657,-500.0,9.579e-05,2]
[346981475,1735447843666,-502.36822896,9.579e-05,2]
[346981476,1735447843676,-500.0,9.579e-05,2]
[346981477,1735447843685,-500.0,9.579e-05,2]
[346981478,1735447843695,-502.41595535,9.579e-05,2]
[346981479,1735447843704,-500.0,9.579e-05,2]
[346981480,1735447843713,-500.0,9.579e-05,2]
[346981481,1735447843724,-500.0,9.579e-05,2]
[346981482,1735447843733,-500.0,9.579e-05,2]
[346981483,1735447843743,-501.19319255,9.579e-05,2]
[346981484,1735447843752,-501.71655862,9.579e-05,2]
[346981485,1735447843761,-584.44,9.579e-05,2]
[346981486,1735447843771,-501.39210558,9.579e-05,2]
[346981487,1735447843781,-507.12,9.579e-05,2]
[346981488,1735447843790,-549.5358771,9.579e-05,2]
[346981489,1735447843801,-500.0,9.58e-05,2]
[346981490,1735447843811,-445.29549241,9.58e-05,2]
[346981491,1735447843820,-504.97443082,9.58e-05,2]
[346981492,1735447843829,-500.0,9.58e-05,2]
[346981493,1735447843839,-284.18547605,9.58e-05,2]
[346981494,1735447843848,-500.0,9.58e-05,2]
[346981495,1735447843859,-500.0,9.58e-05,2]
[346981496,1735447843868,-501.67076145,9.58e-05,2]
[346981497,1735447843878,-502.11991503,9.58e-05,2]
[346981499,1735447843887,-519.28597054,9.58e-05,2]
[346981501,1735447843897,-504.76172864,9.58e-05,2]
[346981503,1735447843906,-500.0,9.58e-05,2]
[346981505,1735447843915,-500.0,9.58e-05,2]
[346981507,1735447843924,-512.25603659,9.58e-05,2]
[346981509,1735447843934,-500.0,9.58e-05,2]
[346981510,1735447843943,-232.9285885,9.58e-05,2]
[346981512,1735447843952,-500.0,9.58e-05,2]
[346981514,1735447843961,-500.0,9.58e-05,2]
[346981515,1735447843971,-500.0,9.58e-05,2]
[346981516,1735447843980,-500.0,9.58e-05,2]
[346981517,1735447843989,-500.0,9.58e-05,2]
[346981518,1735447843999,-526.81627011,9.58e-05,2]
[346981519,1735447844008,-549.91469719,9.58e-05,2]
[346981520,1735447844018,-500.0,9.58e-05,2]
[346981521,1735447844039,-500.0,9.58e-05,2]
[346981522,1735447844049,-510.83922074,9.58e-05,2]
[346981524,1735447844059,-500.0,9.58e-05,2]
[346981526,1735447844069,-503.00490823,9.58e-05,2]
[346981528,1735447844079,-500.0,9.58e-05,2]
[346981530,1735447844090,-500.0,9.58e-05,2]
[346981532,1735447844100,-500.0,9.58e-05,2]
[346981534,1735447844110,-500.51573775,9.58e-05,2]
[346981536,1735447844119,-357.3165433,9.58e-05,2]
[346981538,1735447844129,-501.67467461,9.58e-05,2]
[346981540,1735447844139,-500.0,9.58e-05,2]
[346981541,1735447844149,-500.0,9.58e-05,2]
[346981543,1735447844159,-500.0,9.58e-05,2]
[346981545,1735447844169,-500.0,9.58e-05,2]
[346981547,1735447844178,-500.0,9.58e-05,2]
[346981549,1735447844188,-500.0,9.58e-05,2]
[346981551,1735447844198,-500.0,9.58e-05,2]
[346981553,1735447844208,-500.0,9.58e-05,2]
[346981554,1735447844220,-500.0,9.58e-05,2]
[346981556,1735447844230,-500.0,9.58e-05,2]
[346981558,1735447844240,-500.0,9.58e-05,2]
[346981560,1735447844249,-500.0,9.58e-05,2]
[346981562,1735447844259,-605.91652712,9.58e-05,2]
[346981564,1735447844269,-501.25049761,9.58e-05,2]
[346981566,1735447844278,-500.0,9.58e-05,2]
[346981569,1735447844289,-500.0,9.58e-05,2]
[346981571,1735447844298,-500.0,9.58e-05,2]
[346981572,1735447844308,-500.0,9.58e-05,2]
[346981573,1735447844318,-500.0,9.58e-05,2]
[346981574,1735447844327,-244.58056615,9.58e-05,2]
[346981575,1735447844339,-500.0,9.58e-05,2]
[346981576,1735447844348,-500.0,9.58e-05,2]
[346981577,1735447844358,-500.0,9.58e-05,2]
[346981578,1735447844368,-500.0,9.58e-05,2]
[346981579,1735447844378,-174.59708858,9.58e-05,2]
[346981580,1735447844388,-501.81609562,9.58e-05,2]
[346981581,1735447844398,-231.82466179,9.58e-05,2]
[346981582,1735447844408,-500.0,9.58e-05,2]
[346981583,1735447844417,-500.0,9.58e-05,2]
[346981584,1735447844427,-500.0,9.58e-05,2]
[346981585,1735447844436,-501.3379503,9.58e-05,2]
[346981586,1735447844446,-502.52809694,9.58e-05,2]
[346981587,1735447844456,-506.67404025,9.58e-05,2]
[346981588,1735447844465,-500.0,9.58e-05,2]
[346981589,1735447844475,-507.86195965,9.58e-05,2]
[346981590,1735447844485,-500.88464733,9.58e-05,2]
[346981591,1735447844494,-500.0,9.58e-05,2]
[346981592,1735447844504,-535.06,9.581e-05,2]
[346981593,1735447844514,-500.0,9.581e-05,2]
[346981594,1735447844523,-836.83,9.581e-05,2]
[346981595,1735447844533,-500.0,9.581e-05,2]
[346981596,1735447844543,-541.95,9.581e-05,2]
[346981597,1735447844553,-500.0,9.581e-05,2]
[346981598,1735447844563,-500.0,9.583e-05,2]
[346981599,1735447844572,-584.44,9.583e-05,2]
[346981600,1735447844581,-503.60783554,9.583e-05,2]
[346981601,1735447844591,-500.52215709,9.583e-05,2]
[346981602,1735447844601,-504.06544494,9.584e-05,2]
[346981603,1735447844611,-503.7355724,9.584e-05,2]
[346981604,1735447844621,-359.22502319,9.584e-05,2]
[346981605,1735447844630,-501.20933982,9.584e-05,2]
[346981606,1735447844640,-502.2917029,9.584e-05,2]
[346981607,1735447844650,-417.55789877,9.584e-05,2]
[346981608,1735447844660,-500.0,9.584e-05,2]
[346981609,1735447844669,-500.0,9.586e-05,2]
[346981610,1735447844679,-500.0,9.587e-05,2]
[346981611,1735447844689,-1301.0,9.588e-05,2]
[346981612,1735447844698,-500.0,9.588e-05,2]
[346981613,1735447844708,-511.11,9.588e-05,2]
[346981614,1735447844718,-182.07948853,9.716e-05,2]
[346981615,1735447844728,-500.0,9.851e-05,2]
[346981616,1735447844738,-500.0,9.851e-05,2]
[346981617,1735447844748,-536.32,9.851e-05,2]
[346981618,1735447844758,-500.0,9.851e-05,2]
[346981619,1735447844767,-500.0,9.851e-05,2]
[346981620,1735447844777,-500.0,9.851e-05,2]
[346981621,1735447844787,-500.0,9.852e-05,2]
[346981622,1735447844798,-500.0,9.852e-05,2]
[346981623,1735447844809,-500.0,9.852e-05,2]
[346981624,1735447844818,-500.0,9.852e-05,2]
[346981625,1735447844828,-500.0,9.852e-05,2]
[346981626,1735447844838,-500.0,9.852e-05,2]
[346981627,1735447844848,-500.0,9.852e-05,2]
[346981628,1735447844858,-500.0,9.852e-05,2]
[346981629,1735447844867,-500.0,9.852e-05,2]
[346981630,1735447844877,-500.0,9.852e-05,2]
[346981631,1735447844887,-500.0,9.852e-05,2]
[346981632,1735447844897,-500.0,9.852e-05,2]
[346981633,1735447844906,-500.0,9.852e-05,2]
[346981634,1735447844916,-500.0,9.852e-05,2]
[346981635,1735447844926,-284.0,9.852e-05,2]
[346981636,1735447844937,-500.0,9.852e-05,2]
[346981637,1735447844946,-199.95,9.852e-05,2]
[346981638,1735447844956,-159.83782104,9.852e-05,2]
[346981639,1735447844965,-807.39,9.852e-05,2]
[346981640,1735447844975,-500.0,9.852e-05,2]
[346981641,1735447844985,-9735.03,9.852e-05,2]
[346981642,1735447844995,-529.71,9.852e-05,2]
[346981643,1735447845005,-500.0,9.852e-05,2]
[346981644,1735447845015,-500.0,9.852e-05,2]
[346981645,1735447845025,-500.0,9.852e-05,2]
[346981646,1735447845035,-500.0,9.852e-05,2]
[346981647,1735447845045,-558.38,9.852e-05,2]
[346981648,1735447845055,-500.0,9.852e-05,2]
[346981649,1735447845065,-584.44,9.853e-05,2]
[346981650,1735447845074,-500.0,9.854e-05,2]
[346981651,1735447845085,-500.0,9.854e-05,2]
[346981652,1735447845096,-500.0,9.854e-05,2]
[346981653,1735447845107,-500.0,9.854e-05,2]
[346981654,1735447845116,-500.0,9.854e-05,2]
[346981655,1735447845126,-500.0,9.854e-05,2]
[346981656,1735447845136,-500.0,9.854e-05,2]
[346981657,1735447845146,-504.69003701,9.854e-05,2]
[346981658,1735447845155,-500.0,9.854e-05,2]
[346981659,1735447845166,-836.83,9.855e-05,2]
[346981660,1735447845175,-541.95,9.855e-05,2]
[346981661,1735447845185,-237.87135015,9.857e-05,2]
[346981662,1735447845194,-500.0,9.86e-05,2]
[346981663,1735447845205,-500.0,9.861e-05,2]
[346981664,1735447845215,-1301.0,9.862e-05,2]
[346981665,1735447845227,-500.0,9.862e-05,2]
[346981666,1735447845237,-511.11,9.862e-05,2]
[346981667,1735447845247,-182.07948853,9.921e-05,2]
[346981668,1735447845257,-584.44,9.999e-05,2]
[346981669,1735447845267,-584.44,9.999e-05,2]
[346981670,1735447845276,-584.44,9.999e-05,2]
[346981671,1735447845286,-584.44,9.999e-05,2]
[346981672,1735447845297,-584.44,9.999e-05,2]
[346981673,1735447845307,-584.44,9.999e-05,2]
[346981674,1735447845316,-584.44,9.999e-05,2]
[346981675,1735447845326,-584.44,9.999e-05,2]
[346981676,1735447845336,-584.44,9.999e-05,2]
[346981677,1735447845346,-584.44,9.999e-05,2]
[346981678,1735447845355,-584.44,9.999e-05,2]
[346981679,1735447845364,-584.61068298,9.999e-05,2]
[346981680,1735447845374,-249485.894049,0.0001,2]
[346981681,1735447845383,-182.07948853,0.00010026,2]
[346981682,1735447845393,-500.0,0.00010125,2]
[346981683,1735447845403,-500.0,0.00010125,2]
[346981684,1735447845413,-536.32,0.00010125,2]
[346981685,1735447845423,-389.06659154,0.00010125,2]
[346981686,1735447845432,-500.0,0.00010125,2]
[346981687,1735447845442,-500.0,0.00010126,2]
[346981688,1735447845452,-500.0,0.00010126,2]
[346981689,1735447845462,-500.0,0.00010126,2]
[346981690,1735447845472,-500.0,0.00010126,2]
[346981691,1735447845482,-500.0,0.00010126,2]
[346981692,1735447845492,-500.0,0.00010126,2]
[346981693,1735447845503,-500.0,0.00010126,2]
[346981694,1735447845513,-500.0,0.00010126,2]
[346981695,1735447845522,-500.0,0.00010126,2]
[346981696,1735447845532,-500.0,0.00010126,2]
[346981697,1735447845545,-500.0,0.00010126,2]
[346981698,1735447845555,-500.0,0.00010126,2]
[346981699,1735447845565,-500.0,0.00010126,2]
[346981700,1735447845574,-807.39,0.00010126,2]
[346981701,1735447845584,-500.0,0.00010126,2]
[346981702,1735447845594,-9735.03,0.00010126,2]
[346981703,1735447845603,-529.71,0.00010126,2]
[346981704,1735447845613,-500.0,0.00010126,2]
[346981705,1735447845623,-500.0,0.00010126,2]
[346981706,1735447845632,-500.0,0.00010126,2]
[346981707,1735447845642,-500.0,0.00010126,2]
[346981708,1735447845651,-558.38,0.00010126,2]
[346981709,1735447845661,-500.0,0.00010126,2]
[346981710,1735447845671,-500.0,0.00010128,2]
[346981711,1735447845680,-500.0,0.00010128,2]
[346981712,1735447845690,-500.0,0.00010128,2]
[346981713,1735447845699,-500.0,0.00010128,2]
[346981714,1735447845709,-500.0,0.00010128,2]
[346981715,1735447845824,-500.0,0.00010128,2]
[346981716,1735447845834,-500.0,0.00010128,2]
[346981717,1735447845843,-500.0,0.00010128,2]
[346981718,1735447845854,-836.83,0.00010129,2]
[346981719,1735447845863,-541.95,0.00010129,2]
[346981720,1735447845873,-500.0,0.00010134,2]
[346981721,1735447845883,-500.0,0.00010135,2]
[346981722,1735447845892,-1301.0,0.00010136,2]
[346981723,1735447845902,-500.0,0.00010136,2]
[346981724,1735447845911,-511.11,0.00010136,2]
[346981725,1735447845922,-500.0,0.00010399,2]
[346981726,1735447845932,-536.32,0.00010399,2]
[346981727,1735447845942,-500.0,0.00010399,2]
[346981728,1735447845951,-500.0,0.000104,2]
[346981729,1735447845962,-500.0,0.000104,2]
[346981730,1735447845972,-621.08,0.000104,2]
[346981731,1735447845981,-500.0,0.000104,2]
[346981732,1735447845990,-222.58,0.000104,2]
[346981733,1735447845999,-500.0,0.000104,2]
[346981734,1735447846009,-500.0,0.000104,2]
[346981735,1735447846018,-290.74,0.000104,2]
[346981736,1735447846027,-218.694721,0.000104,2]
[346981737,1735447846037,-807.39,0.000104,2]
[346981738,1735447846047,-500.0,0.000104,2]
[346981739,1735447846056,-9735.03,0.000104,2]
[346981740,1735447846065,-529.71,0.000104,2]
[346981741,1735447846075,-500.0,0.000104,2]
[346981742,1735447846085,-500.0,0.000104,2]
[346981743,1735447846095,-500.0,0.000104,2]
[346981744,1735447846104,-500.0,0.000104,2]
[346981745,1735447846113,-558.38,0.000104,2]
[346981746,1735447846123,-291.3230051,0.000104,2]
[346981747,1735447846133,-500.0,0.00010402,2]
[346981748,1735447846143,-500.0,0.00010402,2]
[346981749,1735447846153,-500.0,0.00010402,2]
[346981750,1735447846162,-500.0,0.00010402,2]
[346981751,1735447846172,-500.0,0.00010402,2]
[346981752,1735447846181,-500.0,0.00010402,2]
[346981753,1735447846191,-500.0,0.00010402,2]
[346981755,1735447846201,-836.83,0.00010403,2]
[346981757,1735447846210,-541.95,0.00010403,2]
[346981759,1735447846222,-500.0,0.00010408,2]
[346981761,1735447846231,-506.75950075,0.00010409,2]
[346981763,1735447846241,-1301.0,0.0001041,2]
[346981765,1735447846250,-500.0,0.0001041,2]
[346981767,1735447846260,-511.11,0.0001041,2]
[346981769,1735447846270,-521.98868813,0.00010673,2]
[346981771,1735447846280,-536.32,0.00010673,2]
[346981773,1735447846289,-500.0,0.00010673,2]
[346981775,1735447846300,-500.0,0.00010674,2]
[346981777,1735447846309,-500.0,0.00010674,2]
[346981779,1735447846319,-515.43,0.00010674,2]
[346981781,1735447846329,-500.0,0.00010674,2]
[346981782,1735447846339,-288.73,0.00010674,2]
[346981783,1735447846349,-807.39,0.00010674,2]
[346981785,1735447846359,-500.0,0.00010674,2]
[346981787,1735447846369,-9735.03,0.00010674,2]
[346981789,1735447846378,-529.71,0.00010674,2]
[346981791,1735447846387,-500.0,0.00010674,2]
[346981793,1735447846397,-500.0,0.00010674,2]
[346981795,1735447846406,-500.0,0.00010674,2]
[346981797,1735447846416,-500.0,0.00010674,2]
[346981799,1735447846425,-558.38,0.00010674,2]
[346981801,1735447846434,-500.0,0.00010676,2]
[346981803,1735447846443,-500.0,0.00010676,2]
[346981805,1735447846452,-500.0,0.00010676,2]
[346981807,1735447846462,-500.0,0.00010676,2]
[346981809,1735447846470,-500.0,0.00010676,2]
[346981811,1735447846480,-500.0,0.00010676,2]
[346981813,1735447846489,-500.0,0.00010676,2]
[346981815,1735447846498,-836.83,0.00010677,2]
[346981817,1735447846507,-541.95,0.00010677,2]
[346981819,1735447846516,-500.0,0.00010682,2]
[346981821,1735447846525,-1301.0,0.00010684,2]
[346981823,1735447846534,-500.0,0.00010684,2]
[346981825,1735447846543,-511.11,0.00010684,2]
[346981827,1735447846552,-536.32,0.00010947,2]
[346981829,1735447846562,-500.0,0.00010947,2]
[346981831,1735447846571,-323.36388745,0.00010948,2]
[346981833,1735447846581,-500.0,0.00010948,2]
[346981835,1735447846590,-427.41,0.00010948,2]
[346981837,1735447846599,-807.39,0.00010948,2]
[346981839,1735447846608,-568.0133497,0.00010948,2]
[346981840,1735447846617,-9735.03,0.00010948,2]
[346981843,1735447846626,-529.71,0.00010948,2]
[346981844,1735447846636,-500.0,0.00010948,2]
[346981847,1735447846645,-500.0,0.00010948,2]
[346981848,1735447846654,-500.0,0.00010948,2]
[346981851,1735447846664,-500.0,0.00010948,2]
[346981853,1735447846673,-558.38,0.00010948,2]
[346981855,1735447846683,-515.54,0.0001095,2]
[346981857,1735447846693,-500.0,0.0001095,2]
[346981859,1735447846703,-500.0,0.0001095,2]
[346981861,1735447846712,-500.0,0.0001095,2]
[346981863,1735447846721,-500.0,0.0001095,2]
[346981865,1735447846731,-836.83,0.00010951,2]
[346981867,1735447846740,-541.95,0.00010951,2]
[346981869,1735447846750,-500.0,0.00010956,2]
[346981871,1735447846759,-1301.0,0.00010958,2]
[346981873,1735447846768,-500.0,0.00010958,2]
[346981875,1735447846777,-511.11,0.00010958,2]
[346981877,1735447846786,-536.32,0.00011221,2]
[346981879,1735447846795,-500.0,0.00011221,2]
[346981881,1735447846805,-807.39,0.00011222,2]
[346981883,1735447846814,-9735.03,0.00011222,2]
[346981885,1735447846823,-529.71,0.00011222,2]
[346981887,1735447846832,-500.0,0.00011222,2]
[346981889,1735447846842,-182.41,0.00011222,2]
[346981891,1735447846851,-500.0,0.00011222,2]
[346981893,1735447846860,-558.38,0.00011222,2]
[346981895,1735447846868,-294.0,0.00011224,2]
[346981897,1735447846878,-836.83,0.00011225,2]
[346981899,1735447846887,-541.95,0.00011225,2]
[346981901,1735447846897,-626.48138934,0.0001123,2]
[346981903,1735447846906,-1301.0,0.00011232,2]
[346981905,1735447846915,-511.11,0.00011232,2]
[346981907,1735447846924,-536.32,0.00011495,2]
[346981909,1735447846933,-399.52,0.00011495,2]
[346981911,1735447846943,-807.39,0.00011496,2]
[346981913,1735447846951,-9735.03,0.00011496,2]
[346981915,1735447846961,-529.71,0.00011496,2]
[346981917,1735447846970,-500.0,0.00011496,2]
[346981919,1735447846979,-500.0,0.00011496,2]
[346981921,1735447846988,-558.38,0.00011496,2]
[346981923,1735447846998,-836.83,0.00011499,2]
[346981925,1735447847007,-541.95,0.00011499,2]
[346981927,1735447847016,-1301.0,0.00011506,2]
[346981929,1735447847026,-511.11,0.00011506,2]
[346981931,1735447847035,-536.32,0.00011769,2]
[346981933,1735447847045,-807.39,0.0001177,2]
[346981935,1735447847054,-9735.03,0.0001177,2]
[346981937,1735447847063,-529.71,0.0001177,2]
[346981939,1735447847073,-500.0,0.0001177,2]
[346981941,1735447847082,-500.0,0.0001177,2]
[346981943,1735447847091,-558.38,0.0001177,2]
[346981945,1735447847101,-836.83,0.00011773,2]
[346981947,1735447847110,-541.95,0.00011773,2]
[346981949,1735447847119,-1301.0,0.0001178,2]
[346981951,1735447847128,-511.11,0.0001178,2]
[346981953,1735447847137,-536.32,0.00012043,2]
[346981955,1735447847146,-807.39,0.00012044,2]
[346981957,1735447847155,-9735.03,0.00012044,2]
[346981959,1735447847164,-529.71,0.00012044,2]
[346981961,1735447847174,-500.0,0.00012044,2]
[346981963,1735447847183,-500.0,0.00012044,2]
[346981965,1735447847192,-558.38,0.00012044,2]
[346981967,1735447847200,-151.0,0.00012044,2]
[346981969,1735447847209,-151.0,0.00012044,2]
[346981971,1735447847223,-151.0,0.00012044,2]
[346981973,1735447847232,-836.83,0.00012047,2]
[346981975,1735447847241,-541.95,0.00012047,2]
[346981977,1735447847251,-1301.0,0.00012054,2]
[346981979,1735447847262,-511.11,0.00012054,2]
[346981982,1735447847271,-536.32,0.00012317,2]
[346981984,1735447847281,-807.39,0.00012318,2]
[346981985,1735447847291,-9735.03,0.00012318,2]
[346981988,1735447847300,-529.71,0.00012318,2]
[346981990,1735447847309,-500.0,0.00012318,2]
[346981992,1735447847318,-500.0,0.00012318,2]
[346981994,1735447847327,-558.38,0.00012318,2]
[346981996,1735447847336,-836.83,0.00012321,2]
[346981998,1735447847346,-541.95,0.00012321,2]
[346982000,1735447847355,-1301.0,0.00012328,2]
[346982002,1735447847363,-511.11,0.00012328,2]
[346982004,1735447847373,-500.85036124,0.00012425,2]
[346982006,1735447847382,-536.32,0.00012591,2]
[346982008,1735447847392,-807.39,0.00012592,2]
[346982010,1735447847401,-5975.51909108,0.00012592,2]
[346982013,1735447847420,-3759.51090892,0.00012592,2]
[346982015,1735447847430,-529.71,0.00012592,2]
[346982017,1735447847439,-625.76416127,0.00012592,2]
[346982019,1735447847448,-548.56,0.00012592,2]
[346982021,1735447847457,-558.38,0.00012592,2]
[346982023,1735447847466,-836.83,0.00012595,2]
[346982025,1735447847476,-541.95,0.00012595,2]
[346982027,1735447847485,-1301.0,0.00012602,2]
[346982029,1735447847494,-511.11,0.00012602,2]
[346982031,1735447847503,-420.01452682,0.00012775,2]
[346982033,1735447847512,-502.82425251,0.00012775,2]
[346982035,1735447847521,-500.30083662,0.00012775,2]
[346982037,1735447847530,-202.35856126,0.00012775,2]
[346982039,1735447847540,-151.02915602,0.00012775,2]
[346982040,1735447847549,-305.56530402,0.00012775,2]
[346982041,1735447847558,-536.32,0.00012865,2]
[346982042,1735447847569,-807.39,0.00012866,2]
[346982043,1735447847578,-9735.03,0.00012866,2]
[346982044,1735447847587,-529.71,0.00012866,2]
[346982045,1735447847597,-558.38,0.00012866,2]
[346982046,1735447847606,-836.83,0.00012869,2]
[346982047,1735447847615,-541.95,0.00012869,2]
[346982048,1735447847624,-1301.0,0.00012876,2]
[346982049,1735447847633,-511.11,0.00012876,2]
[346982050,1735447847643,-168.49805944,0.000129,2]
[346982051,1735447847652,-168.4980594,0.000129,2]
[346982052,1735447847661,-168.4980594,0.00013035,2]
[346982053,1735447847671,-536.32,0.00013139,2]
[346982054,1735447847680,-807.39,0.0001314,2]
[346982056,1735447847689,-9735.03,0.0001314,2]
[346982058,1735447847698,-529.71,0.0001314,2]
[346982060,1735447847707,-558.38,0.0001314,2]
[346982062,1735447847716,-151.0,0.00013141,2]
[346982064,1735447847725,-151.0,0.00013141,2]
[346982066,1735447847734,-151.0,0.00013141,2]
[346982068,1735447847743,-151.0,0.00013141,2]
[346982070,1735447847752,-151.0,0.00013141,2]
[346982072,1735447847761,-151.0,0.00013141,2]
[346982074,1735447847770,-836.83,0.00013143,2]
[346982076,1735447847779,-541.95,0.00013143,2]
[346982078,1735447847788,-1301.0,0.0001315,2]
[346982080,1735447847798,-511.11,0.0001315,2]
[346982082,1735447847807,-153.27890845,0.00013413,2]
[346982084,1735447847818,-383.04109155,0.00013413,2]
[346982086,1735447847828,-807.39,0.00013414,2]
[346982088,1735447847837,-9735.03,0.00013414,2]
[346982090,1735447847847,-529.71,0.00013414,2]
[346982092,1735447847856,-558.38,0.00013414,2]
[346982094,1735447847865,-836.83,0.00013417,2]
[346982096,1735447847874,-541.95,0.00013417,2]
[346982098,1735447847883,-1301.0,0.00013424,2]
[346982100,1735447847892,-191.139855,0.00013424,2]
[346982102,1735447847901,-151.0,0.00013424,2]
[346982112,1735447847984,-191.139855,0.00013424,2]
[346982114,1735447847994,-511.11,0.00013424,2]
[346982116,1735447848003,-536.32,0.00013687,2]
[346982118,1735447848012,-807.39,0.00013688,2]
[346982120,1735447848021,-9735.03,0.00013688,2]
[346982122,1735447848030,-529.71,0.00013688,2]
[346982124,1735447848040,-558.38,0.00013688,2]
[346982126,1735447848049,-151.0,0.00013689,2]
[346982128,1735447848058,-250.918985,0.00013689,2]
[346982130,1735447848067,-250.918985,0.00013689,2]
[346982132,1735447848076,-210.633371,0.00013689,2]
[346982134,1735447848086,-151.0,0.00013689,2]
[346982136,1735447848096,-151.0,0.00013689,2]
[346982138,1735447848105,-210.633371,0.00013689,2]
[346982140,1735447848114,-151.0,0.00013689,2]
[346982142,1735447848123,-193.000635,0.00013689,2]
[346982144,1735447848133,-970.504901,0.00013689,2]
[346982146,1735447848142,-193.000635,0.00013689,2]
[346982148,1735447848152,-970.504901,0.00013689,2]
[346982150,1735447848161,-836.83,0.00013691,2]
[346982152,1735447848170,-541.95,0.00013691,2]
[346982154,1735447848179,-502.00440404,0.00013698,2]
[346982156,1735447848188,-1000.0,0.00013698,2]
[346982158,1735447848198,-1000.0,0.00013698,2]
[346982160,1735447848207,-1000.0,0.00013698,2]
[346982162,1735447848218,-1000.0,0.00013698,2]
[346982164,1735447848229,-1000.0,0.00013698,2]
[346982166,1735447848239,-1000.0,0.00013698,2]
[346982168,1735447848248,-981.34694215,0.00013698,2]
[346982170,1735447848257,-1301.0,0.00013698,2]
[346982172,1735447848267,-1000.0,0.00013698,2]
[346982174,1735447848277,-1000.0,0.00013698,2]
[346982176,1735447848286,-1000.0,0.00013698,2]
[346982178,1735447848297,-1000.0,0.00013698,2]
[346982180,1735447848307,-1000.0,0.00013698,2]
[346982182,1735447848316,-1000.0,0.00013698,2]
[346982184,1735447848325,-1000.0,0.00013698,2]
[346982186,1735447848335,-1000.0,0.00013698,2]
[346982188,1735447848345,-1000.0,0.00013698,2]
[346982190,1735447848354,-1000.0,0.00013698,2]
[346982192,1735447848363,-1000.0,0.00013698,2]